[Event "NJSK 2026 Jeugd C"]
[Site "Helmond, Netherlands"]
[Date "2026.04.28"]
[Round "5.13"]
[White "Ozbek, Ahmet Naim"]
[Black "Ngangbam, Chingthang"]
[Result "1-0"]
[TimeControl "90min/40moves + 30sec/move"]
[WhiteTitle "-"]
[BlackTitle "-"]
[WhiteFideId "40101975"]
[BlackFideId "1086510"]
[WhiteElo "1869"]
[BlackElo "1937"]

1. d4 {[%clk 01:30:20]} {[%emt 00:00:37]} Nf6 {[%clk 01:30:53]} {[%emt
00:00:08]} 2. c4 {[%clk 01:30:46]} {[%emt 00:00:04]} g6 {[%clk 01:31:17]}
{[%emt 00:00:07]} 3. Nc3 {[%clk 01:31:12]} {[%emt 00:00:03]} d5 {[%clk
01:31:40]} {[%emt 00:00:07]} 4. Nf3 {[%clk 01:31:38]} {[%emt 00:00:05]} Bg7
{[%clk 01:31:53]} {[%emt 00:00:17]} 5. Qb3 {[%clk 01:32:02]} {[%emt 00:00:05]}
c6 {[%clk 01:29:25]} {[%emt 00:02:59]} 6. Bf4 {[%clk 01:32:26]} {[%emt
00:00:04]} dxc4 {[%clk 01:18:26]} {[%emt 00:11:30]} 7. Qxc4 {[%clk 01:31:58]}
{[%emt 00:00:59]} Be6 {[%clk 01:17:19]} {[%emt 00:01:36]} 8. Qd3 {[%clk
01:30:56]} {[%emt 00:01:31]} Nd5 {[%clk 01:15:46]} {[%emt 00:02:04]} 9. Be5
{[%clk 01:23:57]} {[%emt 00:07:29]} O-O {[%clk 01:11:58]} {[%emt 00:04:18]} 10.
Bxg7 {[%clk 01:24:06]} {[%emt 00:00:20]} Kxg7 {[%clk 01:12:22]} {[%emt
00:00:07]} 11. e3 {[%clk 01:24:01]} {[%emt 00:00:35]} Qb6 {[%clk 01:04:11]}
{[%emt 00:08:42]} 12. Qd2 {[%clk 01:21:22]} {[%emt 00:03:08]} Rd8 {[%clk
01:00:44]} {[%emt 00:03:57]} 13. Na4 {[%clk 01:15:20]} {[%emt 00:06:32]} Qc7
{[%clk 00:58:40]} {[%emt 00:02:33]} 14. Nc5 {[%clk 01:13:08]} {[%emt 00:02:43]}
Bc8 {[%clk 00:56:37]} {[%emt 00:02:32]} 15. Be2 {[%clk 01:10:04]} {[%emt
00:03:34]} b6 {[%clk 00:54:41]} {[%emt 00:02:27]} 16. Nd3 {[%clk 01:08:59]}
{[%emt 00:01:36]} Nd7 {[%clk 00:49:09]} {[%emt 00:06:01]} 17. O-O {[%clk
01:06:58]} {[%emt 00:02:31]} N5f6 {[%clk 00:45:00]} {[%emt 00:04:39]} 18. Rac1
{[%clk 01:01:04]} {[%emt 00:06:24]} Bb7 {[%clk 00:44:06]} {[%emt 00:01:24]} 19.
Qc2 {[%clk 00:58:32]} {[%emt 00:03:02]} Rac8 {[%clk 00:39:30]} {[%emt
00:05:06]} 20. b4 {[%clk 00:55:10]} {[%emt 00:03:52]} Ne4 {[%clk 00:38:05]}
{[%emt 00:01:55]} 21. Qb2 {[%clk 00:49:22]} {[%emt 00:06:17]} Ndf6 {[%clk
00:34:12]} {[%emt 00:04:23]} 22. Nfe5 {[%clk 00:45:47]} {[%emt 00:04:05]} Nd7
{[%clk 00:27:27]} {[%emt 00:07:16]} 23. d5 {[%clk 00:36:49]} {[%emt 00:09:30]}
Nxe5 {[%clk 00:25:51]} {[%emt 00:02:06]} 24. Nxe5 {[%clk 00:36:04]} {[%emt
00:01:15]} f6 {[%clk 00:23:34]} {[%emt 00:02:47]} 25. Nxc6 {[%clk 00:35:58]}
{[%emt 00:00:36]} Bxc6 {[%clk 00:22:37]} {[%emt 00:01:27]} 26. Rxc6 {[%clk
00:35:13]} {[%emt 00:01:16]} Qd7 {[%clk 00:22:03]} {[%emt 00:01:03]} 27. f3
{[%clk 00:33:29]} {[%emt 00:02:14]} Nd6 {[%clk 00:21:25]} {[%emt 00:01:07]} 28.
Rxc8 {[%clk 00:33:30]} {[%emt 00:00:30]} Rxc8 {[%clk 00:21:47]} {[%emt
00:00:08]} 29. Rc1 {[%clk 00:31:41]} {[%emt 00:02:19]} Qb7 {[%clk 00:16:58]}
{[%emt 00:05:19]} 30. e4 {[%clk 00:29:36]} {[%emt 00:02:35]} b5 {[%clk
00:12:34]} {[%emt 00:04:54]} 31. Rxc8 {[%clk 00:28:12]} {[%emt 00:01:55]} Qxc8
{[%clk 00:12:40]} {[%emt 00:00:23]} 32. Bd3 {[%clk 00:25:51]} {[%emt 00:02:51]}
Qc7 {[%clk 00:11:48]} {[%emt 00:01:22]} 33. Qc2 {[%clk 00:24:16]} {[%emt
00:02:05]} Nc4 {[%clk 00:10:49]} {[%emt 00:01:29]} 34. Bxc4 {[%clk 00:21:00]}
{[%emt 00:03:47]} bxc4 {[%clk 00:11:11]} {[%emt 00:00:07]} 35. Qc3 {[%clk
00:21:13]} {[%emt 00:00:18]} h5 {[%clk 00:09:46]} {[%emt 00:01:54]} 36. h3
{[%clk 00:17:42]} {[%emt 00:04:01]} h4 {[%clk 00:09:22]} {[%emt 00:00:54]} 37.
Kf2 {[%clk 00:17:18]} {[%emt 00:00:54]} Qg3+ {[%clk 00:07:45]} {[%emt
00:02:06]} 38. Kf1 {[%clk 00:17:44]} {[%emt 00:00:05]} Qc7 {[%clk 00:07:47]}
{[%emt 00:00:28]} 39. a4 {[%clk 00:17:47]} {[%emt 00:00:28]} Kh6 {[%clk
00:07:45]} {[%emt 00:00:32]} 40. e5 {[%clk 00:11:00]} {[%emt 00:07:17]} fxe5
{[%clk 00:07:24]} {[%emt 00:00:50]} 41. Qe3+ {[%clk 00:11:23]} {[%emt
00:00:06]} Kg7 {[%clk 00:07:07]} {[%emt 00:00:48]} 42. Qc5 {[%clk 00:11:38]}
{[%emt 00:00:15]} Qd7 {[%clk 00:06:10]} {[%emt 00:01:28]} 43. b5 {[%clk
00:10:18]} {[%emt 00:01:49]} c3 {[%clk 00:06:12]} {[%emt 00:00:28]} 44. Ke2
{[%clk 00:09:06]} {[%emt 00:01:43]} e6 {[%clk 00:05:00]} {[%emt 00:01:41]} 45.
d6 {[%clk 00:09:02]} {[%emt 00:00:34]} Kf6 {[%clk 00:04:12]} {[%emt 00:01:17]}
46. f4 {[%clk 00:06:08]} {[%emt 00:03:25]} exf4 {[%clk 00:03:39]} {[%emt
00:01:03]} 47. Qxc3+ {[%clk 00:06:35]} {[%emt 00:00:03]} e5 {[%clk 00:03:33]}
{[%emt 00:00:35]} 48. Qc7 {[%clk 00:02:22]} {[%emt 00:04:45]} Qe6 {[%clk
00:01:05]} {[%emt 00:02:57]} 49. Qd8+ {[%clk 00:01:40]} {[%emt 00:01:12]} Kf5
{[%clk 00:01:08]} {[%emt 00:00:27]} 50. Qf8+ {[%clk 00:01:21]} {[%emt
00:00:49]} Ke4 {[%clk 00:01:22]} {[%emt 00:00:16]} 51. Qa8+ {[%clk 00:01:32]}
{[%emt 00:00:20]} Kf5 {[%clk 00:01:45]} {[%emt 00:00:06]} 52. Qf8+ {[%clk
00:01:11]} {[%emt 00:00:51]} Ke4 {[%clk 00:02:10]} {[%emt 00:00:05]} 53. Qa8+
{[%clk 00:01:38]} {[%emt 00:00:03]} Kf5 {[%clk 00:02:33]} {[%emt 00:00:07]} 54.
Qc6 {[%clk 00:01:14]} {[%emt 00:00:54]} e4 {[%clk 00:00:56]} {[%emt 00:02:07]}
55. Qc5+ {[%clk 00:01:09]} {[%emt 00:00:36]} Kf6 {[%clk 00:01:14]} {[%emt
00:00:11]} 56. Qd4+ {[%clk 00:01:20]} {[%emt 00:00:19]} Kf5 {[%clk 00:01:00]}
{[%emt 00:00:44]} 57. d7 {[%clk 00:00:51]} {[%emt 00:01:00]} Qa2+ {[%clk
00:01:17]} {[%emt 00:00:13]} 58. Ke1 {[%clk 00:00:58]} {[%emt 00:00:23]} Qb1+
{[%clk 00:01:15]} {[%emt 00:00:31]} 59. Qd1 {[%clk 00:00:54]} {[%emt 00:00:34]}
Qb4+ {[%clk 00:01:30]} {[%emt 00:00:15]} 60. Kf1 {[%clk 00:01:18]} {[%emt
00:00:07]} Qc4+ {[%clk 00:01:23]} {[%emt 00:00:36]} 61. Kg1 {[%clk 00:01:38]}
{[%emt 00:00:10]} f3 {[%clk 00:00:33]} {[%emt 00:01:20]} 62. d8=Q {[%clk
00:01:36]} {[%emt 00:00:32]} f2+ {[%clk 00:00:35]} {[%emt 00:00:29]} 63. Kxf2
{[%clk 00:02:02]} {[%emt 00:00:04]} e3+ {[%clk 00:00:46]} {[%emt 00:00:19]} 64.
Kg1 {[%clk 00:02:22]} {[%emt 00:00:09]} 1-0

[Event "NJSK 2026 Jeugd C"]
[Site "Helmond, Netherlands"]
[Date "2026.04.28"]
[Round "5.14"]
[White "Tkacenko, Kostia"]
[Black "Brorens, Victor"]
[Result "1-0"]
[TimeControl "90min/40moves + 30sec/move"]
[WhiteTitle "-"]
[BlackTitle "-"]
[WhiteFideId "40120708"]
[BlackFideId "1095307"]
[WhiteElo "1552"]
[BlackElo "1911"]

1. e4 {[%clk 01:30:58]} {[%emt 00:00:03]} e5 {[%clk 01:30:50]} {[%emt
00:00:11]} 2. Nf3 {[%clk 01:31:21]} {[%emt 00:00:06]} Nc6 {[%clk 01:31:19]}
{[%emt 00:00:01]} 3. Bb5 {[%clk 01:31:45]} {[%emt 00:00:06]} Nf6 {[%clk
01:31:44]} {[%emt 00:00:05]} 4. O-O {[%clk 01:32:07]} {[%emt 00:00:08]} Bc5
{[%clk 01:31:59]} {[%emt 00:00:14]} 5. c3 {[%clk 01:31:33]} {[%emt 00:01:05]}
O-O {[%clk 01:31:47]} {[%emt 00:00:42]} 6. Re1 {[%clk 01:31:42]} {[%emt
00:00:21]} d6 {[%clk 01:32:04]} {[%emt 00:00:13]} 7. h3 {[%clk 01:31:39]}
{[%emt 00:00:33]} Re8 {[%clk 01:31:46]} {[%emt 00:00:48]} 8. d3 {[%clk
01:30:11]} {[%emt 00:01:57]} h6 {[%clk 01:31:52]} {[%emt 00:00:24]} 9. Be3
{[%clk 01:28:59]} {[%emt 00:01:42]} Bxe3 {[%clk 01:31:42]} {[%emt 00:00:40]} 10.
fxe3 {[%clk 01:29:09]} {[%emt 00:00:20]} Bd7 {[%clk 01:31:58]} {[%emt
00:00:14]} 11. Nbd2 {[%clk 01:29:09]} {[%emt 00:00:30]} a6 {[%clk 01:31:30]}
{[%emt 00:00:59]} 12. Ba4 {[%clk 01:29:10]} {[%emt 00:00:29]} Ne7 {[%clk
01:31:37]} {[%emt 00:00:23]} 13. Bb3 {[%clk 01:27:27]} {[%emt 00:02:12]} Ng6
{[%clk 01:31:28]} {[%emt 00:00:39]} 14. d4 {[%clk 01:19:53]} {[%emt 00:08:05]}
c6 {[%clk 01:28:17]} {[%emt 00:03:42]} 15. Qc2 {[%clk 01:13:31]} {[%emt
00:06:51]} d5 {[%clk 01:11:56]} {[%emt 00:16:51]} 16. exd5 {[%clk 01:10:51]}
{[%emt 00:03:09]} e4 {[%clk 01:10:37]} {[%emt 00:01:49]} 17. Ne5 {[%clk
01:05:16]} {[%emt 00:06:04]} Nxe5 {[%clk 01:10:47]} {[%emt 00:00:21]} 18. dxe5
{[%clk 01:05:39]} {[%emt 00:00:07]} Rxe5 {[%clk 01:11:08]} {[%emt 00:00:08]} 19.
dxc6 {[%clk 01:04:25]} {[%emt 00:01:44]} Bxc6 {[%clk 01:11:35]} {[%emt
00:00:03]} 20. Rad1 {[%clk 01:04:20]} {[%emt 00:00:36]} Qc7 {[%clk 01:10:59]}
{[%emt 00:01:05]} 21. Rf1 {[%clk 01:03:05]} {[%emt 00:01:45]} b5 {[%clk
01:04:47]} {[%emt 00:06:42]} 22. Rf4 {[%clk 00:57:24]} {[%emt 00:06:11]} Qa7
{[%clk 01:01:11]} {[%emt 00:04:06]} 23. Re1 {[%clk 00:55:30]} {[%emt 00:02:23]}
Rd8 {[%clk 00:54:57]} {[%emt 00:06:44]} 24. Nf1 {[%clk 00:47:35]} {[%emt
00:08:26]} Rd6 {[%clk 00:41:12]} {[%emt 00:14:15]} 25. Ng3 {[%clk 00:45:46]}
{[%emt 00:02:19]} Qc5 {[%clk 00:23:49]} {[%emt 00:17:57]} 26. Qf2 {[%clk
00:41:12]} {[%emt 00:05:02]} Bd5 {[%clk 00:21:14]} {[%emt 00:03:06]} 27. Nf5
{[%clk 00:38:47]} {[%emt 00:02:54]} Rde6 {[%clk 00:21:27]} {[%emt 00:00:18]} 28.
Nxh6+ {[%clk 00:37:42]} {[%emt 00:01:35]} Kh7 {[%clk 00:21:50]} {[%emt
00:00:06]} 29. Nxf7 {[%clk 00:31:08]} {[%emt 00:07:04]} Rh5 {[%clk 00:22:12]}
{[%emt 00:00:09]} 30. Rf5 {[%clk 00:30:42]} {[%emt 00:00:56]} Rxf5 {[%clk
00:21:04]} {[%emt 00:01:38]} 31. Qxf5+ {[%clk 00:30:46]} {[%emt 00:00:25]} g6
{[%clk 00:21:26]} {[%emt 00:00:09]} 32. Qf4 {[%clk 00:27:29]} {[%emt 00:03:46]}
Bxb3 {[%clk 00:20:54]} {[%emt 00:01:03]} 33. Ng5+ {[%clk 00:26:43]} {[%emt
00:01:16]} Kg7 {[%clk 00:21:14]} {[%emt 00:00:11]} 34. axb3 {[%clk 00:26:06]}
{[%emt 00:01:06]} Re5 {[%clk 00:21:32]} {[%emt 00:00:11]} 35. Rf1 {[%clk
00:25:40]} {[%emt 00:00:56]} Rf5 {[%emt 00:01:26]} 1-0

[Event "NJSK 2026 Jeugd C"]
[Site "Helmond, Netherlands"]
[Date "2026.04.28"]
[Round "5.16"]
[White "Roersma, Dylan"]
[Black "De Wit, Jim"]
[Result "1/2-1/2"]
[TimeControl "90min/40moves + 30sec/move"]
[WhiteTitle "-"]
[BlackTitle "-"]
[WhiteFideId "1097393"]
[BlackFideId "1097326"]
[WhiteElo "1846"]
[BlackElo "1749"]

1. e4 {[%clk 01:30:58]} {[%emt 00:00:01]} c6 {[%clk 01:30:56]} {[%emt
00:00:04]} 2. d4 {[%clk 01:31:09]} {[%emt 00:00:18]} d5 {[%clk 01:31:18]}
{[%emt 00:00:07]} 3. Nc3 {[%clk 01:31:32]} {[%emt 00:00:08]} dxe4 {[%clk
01:31:43]} {[%emt 00:00:06]} 4. Nxe4 {[%clk 01:31:57]} {[%emt 00:00:05]} Nf6
{[%clk 01:32:06]} {[%emt 00:00:07]} 5. Nxf6+ {[%clk 01:32:20]} {[%emt
00:00:07]} exf6 {[%clk 01:32:27]} {[%emt 00:00:09]} 6. c3 {[%clk 01:32:27]}
{[%emt 00:00:22]} Na6 {[%clk 01:32:33]} {[%emt 00:00:24]} 7. Bd3 {[%clk
01:32:20]} {[%emt 00:00:37]} Nc7 {[%clk 01:31:56]} {[%emt 00:01:07]} 8. Ne2
{[%clk 01:32:23]} {[%emt 00:00:27]} Bd6 {[%clk 01:31:27]} {[%emt 00:00:59]} 9.
O-O {[%clk 01:32:23]} {[%emt 00:00:30]} O-O {[%clk 01:31:32]} {[%emt 00:00:26]}
10. Qc2 {[%clk 01:30:11]} {[%emt 00:02:41]} g6 {[%clk 01:31:29]} {[%emt
00:00:32]} 11. a4 {[%clk 01:29:14]} {[%emt 00:01:28]} Nd5 {[%clk 01:31:10]}
{[%emt 00:00:49]} 12. Re1 {[%clk 01:26:33]} {[%emt 00:03:11]} Qc7 {[%clk
01:27:59]} {[%emt 00:03:41]} 13. Ng3 {[%clk 01:07:46]} {[%emt 00:19:17]} f5
{[%clk 01:25:00]} {[%emt 00:03:29]} 14. Nf1 {[%clk 01:04:59]} {[%emt 00:03:17]}
Nf4 {[%clk 01:24:06]} {[%emt 00:01:24]} 15. Bc4 {[%clk 01:01:22]} {[%emt
00:04:07]} b5 {[%clk 01:21:22]} {[%emt 00:03:15]} 16. Bxf4 {[%clk 00:45:29]}
{[%emt 00:16:22]} Bxf4 {[%clk 01:12:26]} {[%emt 00:09:26]} 17. axb5 {[%clk
00:40:22]} {[%emt 00:05:38]} cxb5 {[%clk 01:11:37]} {[%emt 00:01:18]} 18. Bxb5
{[%clk 00:39:07]} {[%emt 00:01:44]} a6 {[%clk 01:12:00]} {[%emt 00:00:08]} 19.
Bd3 {[%clk 00:37:10]} {[%emt 00:02:27]} Bb7 {[%clk 01:11:58]} {[%emt 00:00:32]}
20. Kh1 {[%clk 00:35:53]} {[%emt 00:01:47]} Rfd8 {[%clk 01:03:27]} {[%emt
00:09:01]} 21. f3 {[%clk 00:33:46]} {[%emt 00:02:38]} a5 {[%clk 00:58:26]}
{[%emt 00:05:31]} 22. Re2 {[%clk 00:27:02]} {[%emt 00:07:13]} Rac8 {[%clk
00:57:41]} {[%emt 00:01:15]} 23. Qa4 {[%clk 00:25:59]} {[%emt 00:01:34]} Qd6
{[%clk 00:56:44]} {[%emt 00:01:26]} 24. Bb5 {[%clk 00:22:37]} {[%emt 00:03:52]}
Kf8 {[%clk 00:48:05]} {[%emt 00:09:10]} 25. Qa3 {[%clk 00:13:53]} {[%emt
00:09:16]} Qxa3 {[%clk 00:48:04]} {[%emt 00:00:31]} 26. Rxa3 {[%clk 00:14:11]}
{[%emt 00:00:11]} Ra8 {[%clk 00:47:38]} {[%emt 00:00:56]} 27. Nd2 {[%clk
00:12:18]} {[%emt 00:02:23]} Bc7 {[%clk 00:45:27]} {[%emt 00:02:41]} 28. Nb3
{[%clk 00:09:19]} {[%emt 00:03:30]} Bb6 {[%clk 00:42:58]} {[%emt 00:02:58]} 29.
Re5 {[%clk 00:05:16]} {[%emt 00:04:33]} Bc7 {[%clk 00:42:35]} {[%emt 00:00:53]}
30. Re1 {[%clk 00:04:57]} {[%emt 00:00:50]} Ra7 {[%clk 00:36:06]} {[%emt
00:07:00]} 31. c4 {[%clk 00:04:00]} {[%emt 00:01:26]} Ba6 {[%clk 00:34:07]}
{[%emt 00:02:29]} 32. Bxa6 {[%clk 00:03:56]} {[%emt 00:00:34]} Rxa6 {[%clk
00:34:26]} {[%emt 00:00:10]} 33. d5 {[%clk 00:01:38]} {[%emt 00:02:49]} Rb6
{[%clk 00:28:33]} {[%emt 00:06:23]} 34. Nxa5 {[%clk 00:00:51]} {[%emt
00:01:16]} Rxb2 {[%clk 00:27:07]} {[%emt 00:01:55]} 35. Nc6 {[%clk 00:01:11]}
{[%emt 00:00:11]} Rc8 {[%clk 00:25:58]} {[%emt 00:01:40]} 36. Ra4 {[%clk
00:00:38]} {[%emt 00:01:03]} Bd6 {[%clk 00:25:17]} {[%emt 00:01:10]} 37. g3
{[%clk 00:00:42]} {[%emt 00:00:26]} Rc2 {[%clk 00:22:05]} {[%emt 00:03:43]} 38.
f4 {[%clk 00:00:42]} {[%emt 00:00:30]} Kg7 {[%clk 00:17:59]} {[%emt 00:04:36]}
39. h4 {[%clk 00:00:35]} {[%emt 00:00:37]} Rc7 {[%clk 00:14:07]} {[%emt
00:04:22]} 40. Rg1 {[%clk 00:00:39]} {[%emt 00:00:25]} Rb7 {[%clk 00:13:07]}
{[%emt 00:01:30]} 41. Nd4 {[%clk 00:00:35]} {[%emt 00:00:35]} Rd2 {[%clk
00:10:03]} {[%emt 00:03:33]} 42. Nb5 {[%clk 00:00:47]} {[%emt 00:00:19]} Re7
{[%clk 00:09:43]} {[%emt 00:00:50]} 43. Nxd6 {[%clk 00:00:32]} {[%emt
00:00:45]} Ree2 {[%clk 00:10:00]} {[%emt 00:00:12]} 44. Rga1 {[%clk 00:00:37]}
{[%emt 00:00:25]} 1/2-1/2

[Event "NJSK 2026 Jeugd C"]
[Site "Helmond, Netherlands"]
[Date "2026.04.28"]
[Round "5.17"]
[White "Mendelsohn, Saffran"]
[Black "Nair, Pranav Prasobh"]
[Result "1/2-1/2"]
[TimeControl "90min/40moves + 30sec/move"]
[WhiteTitle "-"]
[BlackTitle "-"]
[WhiteFideId "40108996"]
[BlackFideId "40109135"]
[WhiteElo "1767"]
[BlackElo "1747"]

1. e4 {[%clk 01:30:57]} {[%emt 00:00:03]} e5 {[%clk 01:29:31]} {[%emt
00:01:29]} 2. Nf3 {[%clk 01:31:20]} {[%emt 00:00:07]} Nc6 {[%clk 01:29:56]}
{[%emt 00:00:05]} 3. Bc4 {[%clk 01:31:45]} {[%emt 00:00:05]} Nf6 {[%clk
01:30:18]} {[%emt 00:00:06]} 4. d3 {[%clk 01:32:09]} {[%emt 00:00:08]} Bc5
{[%clk 01:30:42]} {[%emt 00:00:06]} 5. c3 {[%clk 01:32:31]} {[%emt 00:00:08]}
d6 {[%clk 01:31:04]} {[%emt 00:00:08]} 6. O-O {[%clk 01:32:47]} {[%emt
00:00:13]} h6 {[%clk 01:31:02]} {[%emt 00:00:33]} 7. h3 {[%clk 01:32:31]}
{[%emt 00:00:46]} O-O {[%clk 01:31:18]} {[%emt 00:00:14]} 8. Nbd2 {[%clk
01:32:52]} {[%emt 00:00:09]} Be6 {[%clk 01:31:17]} {[%emt 00:00:31]} 9. b4
{[%clk 01:31:44]} {[%emt 00:01:38]} Bb6 {[%clk 01:31:18]} {[%emt 00:00:28]} 10.
Bxe6 {[%clk 01:31:44]} {[%emt 00:00:31]} fxe6 {[%clk 01:31:38]} {[%emt
00:00:09]} 11. Nc4 {[%clk 01:31:49]} {[%emt 00:00:26]} d5 {[%clk 01:27:05]}
{[%emt 00:05:03]} 12. exd5 {[%clk 01:30:53]} {[%emt 00:01:25]} Qxd5 {[%clk
01:25:38]} {[%emt 00:01:58]} 13. Nxb6 {[%clk 01:29:48]} {[%emt 00:01:35]} axb6
{[%clk 01:25:45]} {[%emt 00:00:22]} 14. c4 {[%clk 01:28:28]} {[%emt 00:01:50]}
Qd6 {[%clk 01:26:02]} {[%emt 00:00:12]} 15. b5 {[%clk 01:28:15]} {[%emt
00:00:44]} Nb4 {[%clk 01:24:00]} {[%emt 00:02:32]} 16. d4 {[%clk 01:02:07]}
{[%emt 00:26:38]} exd4 {[%clk 01:19:26]} {[%emt 00:05:04]} 17. Qb3 {[%clk
00:55:25]} {[%emt 00:07:13]} c5 {[%clk 01:15:03]} {[%emt 00:04:53]} 18. Bd2
{[%clk 00:53:05]} {[%emt 00:02:49]} Ra7 {[%clk 00:59:30]} {[%emt 00:16:04]} 19.
Rfe1 {[%clk 00:43:33]} {[%emt 00:10:01]} Rfa8 {[%clk 00:55:48]} {[%emt
00:04:12]} 20. a3 {[%clk 00:43:16]} {[%emt 00:00:47]} d3 {[%clk 00:53:32]}
{[%emt 00:02:46]} 21. Bxb4 {[%clk 00:41:54]} {[%emt 00:01:52]} cxb4 {[%clk
00:53:52]} {[%emt 00:00:09]} 22. a4 {[%clk 00:41:32]} {[%emt 00:00:53]} Nd7
{[%clk 00:47:14]} {[%emt 00:07:08]} 23. Red1 {[%clk 00:31:44]} {[%emt
00:10:16]} Nc5 {[%clk 00:40:07]} {[%emt 00:07:40]} 24. Qxb4 {[%clk 00:31:59]}
{[%emt 00:00:15]} Rxa4 {[%clk 00:39:15]} {[%emt 00:01:23]} 25. Rxa4 {[%clk
00:32:12]} {[%emt 00:00:18]} Rxa4 {[%clk 00:39:38]} {[%emt 00:00:07]} 26. Qc3
{[%clk 00:31:01]} {[%emt 00:01:39]} Ra2 {[%clk 00:29:28]} {[%emt 00:10:41]} 27.
Nd2 {[%clk 00:25:32]} {[%emt 00:05:58]} Na4 {[%clk 00:25:25]} {[%emt 00:04:33]}
28. Qb3 {[%clk 00:24:54]} {[%emt 00:01:08]} Ra3 {[%clk 00:21:23]} {[%emt
00:04:33]} 29. Ne4 {[%clk 00:20:08]} {[%emt 00:05:16]} Qf8 {[%clk 00:06:16]}
{[%emt 00:15:37]} 30. Qb1 {[%clk 00:20:02]} {[%emt 00:00:35]} Qf5 {[%clk
00:00:49]} {[%emt 00:05:57]} 31. Rxd3 {[%clk 00:11:50]} {[%emt 00:08:41]} Rxd3
{[%clk 00:00:35]} {[%emt 00:00:45]} 32. Qxd3 {[%clk 00:12:12]} {[%emt
00:00:09]} Nc5 {[%clk 00:00:53]} {[%emt 00:00:11]} 33. Nxc5 {[%clk 00:12:22]}
{[%emt 00:00:20]} Qxc5 {[%clk 00:00:48]} {[%emt 00:00:35]} 34. Qe4 {[%clk
00:12:27]} {[%emt 00:00:25]} Qc8 {[%clk 00:00:44]} {[%emt 00:00:35]} 35. Qd4
{[%clk 00:10:36]} {[%emt 00:02:20]} Qc7 {[%clk 00:00:57]} {[%emt 00:00:18]} 36.
Kf1 {[%clk 00:10:20]} {[%emt 00:00:45]} e5 {[%clk 00:00:53]} {[%emt 00:00:34]}
37. Qd5+ {[%clk 00:10:34]} {[%emt 00:00:17]} Kh8 {[%clk 00:01:13]} {[%emt
00:00:10]} 38. Ke2 {[%clk 00:10:52]} {[%emt 00:00:12]} Qe7 {[%clk 00:01:02]}
{[%emt 00:00:41]} 39. Ke3 {[%clk 00:10:28]} {[%emt 00:00:54]} Qg5+ {[%clk
00:01:15]} {[%emt 00:00:17]} 40. Ke2 {[%clk 00:10:06]} {[%emt 00:00:51]} Qe7
{[%clk 00:01:33]} {[%emt 00:00:11]} 41. g3 {[%clk 00:10:00]} {[%emt 00:00:37]}
Qb4 {[%clk 00:00:45]} {[%emt 00:01:18]} 42. Ke3 {[%clk 00:09:19]} {[%emt
00:01:11]} Qe1+ {[%clk 00:00:50]} {[%emt 00:00:25]} 43. Kf3 {[%clk 00:08:59]}
{[%emt 00:00:50]} Qc3+ {[%clk 00:00:36]} {[%emt 00:00:45]} 44. Kg4 {[%clk
00:08:45]} {[%emt 00:00:43]} Qc2 {[%clk 00:00:31]} {[%emt 00:00:35]} 45. h4
{[%clk 00:07:41]} {[%emt 00:01:34]} h5+ {[%clk 00:00:43]} {[%emt 00:00:18]} 46.
Kf3 {[%clk 00:07:49]} {[%emt 00:00:22]} Qc3+ {[%clk 00:00:37]} {[%emt
00:00:37]} 47. Ke4 {[%clk 00:07:07]} {[%emt 00:01:11]} Qe1+ {[%clk 00:00:44]}
{[%emt 00:00:23]} 48. Kf5 {[%clk 00:06:17]} {[%emt 00:01:20]} Qxf2+ {[%clk
00:00:59]} {[%emt 00:00:16]} 49. Kxe5 {[%clk 00:02:05]} {[%emt 00:04:42]} Qxg3+
{[%clk 00:00:44]} {[%emt 00:00:44]} 50. Ke6 {[%clk 00:02:22]} {[%emt 00:00:12]}
Qg4+ {[%clk 00:00:40]} {[%emt 00:00:35]} 51. Kd6 {[%clk 00:02:19]} {[%emt
00:00:32]} Qc8 {[%clk 00:00:33]} {[%emt 00:00:39]} 52. Qxh5+ {[%clk 00:02:34]}
{[%emt 00:00:15]} Kg8 {[%clk 00:00:54]} {[%emt 00:00:08]} 53. Qd5+ {[%clk
00:02:43]} {[%emt 00:00:21]} Kh8 {[%clk 00:01:10]} {[%emt 00:00:13]} 54. Ke7
{[%clk 00:01:31]} {[%emt 00:01:41]} Qc7+ {[%clk 00:00:58]} {[%emt 00:00:44]} 55.
Ke6 {[%clk 00:01:18]} {[%emt 00:00:42]} Qc8+ {[%clk 00:00:57]} {[%emt
00:00:31]} 56. Ke5 {[%clk 00:01:19]} {[%emt 00:00:26]} Qe8+ {[%clk 00:01:17]}
{[%emt 00:00:13]} 57. Kf4 {[%clk 00:01:16]} {[%emt 00:00:33]} Qf8+ {[%clk
00:00:58]} {[%emt 00:00:49]} 58. Kg4 {[%clk 00:01:21]} {[%emt 00:00:25]} Qc8+
{[%clk 00:01:14]} {[%emt 00:00:15]} 59. Kf4 {[%clk 00:01:34]} {[%emt 00:00:17]}
Qc7+ {[%clk 00:01:28]} {[%emt 00:00:16]} 60. Ke4 {[%clk 00:01:54]} {[%emt
00:00:08]} Qe7+ {[%clk 00:01:38]} {[%emt 00:00:21]} 61. Kd3 {[%clk 00:02:12]}
{[%emt 00:00:11]} Qxh4 {[%clk 00:01:46]} {[%emt 00:00:24]} 62. Qxb7 {[%clk
00:02:36]} {[%emt 00:00:06]} Qg3+ {[%clk 00:02:01]} {[%emt 00:00:14]} 1/2-1/2